bitfinex/quotes_SOLUSD_20220227
["timestamp","ask_amount","ask_price","bid_price","bid_amount"]
[1645996068728,6.0,85.119,85.033,34.4872532]
[1645996068928,2.07216472,85.12,85.033,34.4872532]
[1645996069328,2.07216472,85.12,85.034,6.0]
[1645996069529,2.07216472,85.12,85.035,117.0]
[1645996069730,2.07216472,85.12,85.037,117.0]
[1645996069936,2.07216472,85.12,85.038,6.0]
[1645996070133,4.58018,85.118,85.02,17.6414]
[1645996070339,4.702,85.117,84.947,2.32789291]
[1645996070633,117.0,85.116,84.922,24.0266]
[1645996070833,118.80785549,85.109,84.922,26.74797958]
[1645996071037,3.67,85.107,84.972,34.12780755]
[1645996071234,3.67,85.097,84.972,34.12780755]
[1645996071432,118.55526032,85.089,84.972,34.12780755]
[1645996071645,6.0,85.088,84.972,34.12780755]
[1645996071832,28.79673764,85.088,84.972,34.12780755]
[1645996072037,19.88488077,85.087,84.972,34.12780755]
[1645996072332,23.13240845,85.086,84.972,34.12780755]
[1645996072531,1.95198987,85.085,84.972,34.12780755]
[1645996072735,6.0,85.084,84.972,34.12780755]
[1645996072933,22.9398423,85.084,84.972,34.12780755]
[1645996073232,1.92842617,85.082,84.972,34.12780755]
[1645996073432,1.58774432,85.08,84.972,34.12780755]
[1645996073637,6.0,85.079,84.972,34.12780755]
[1645996073937,1.5807036,85.078,84.972,34.12780755]
[1645996074137,6.0,85.077,84.972,34.12780755]
[1645996074336,7.59320642,85.077,84.972,34.12780755]
[1645996074535,2.74678921,85.076,84.972,34.12780755]
[1645996074736,5.5,85.075,84.972,34.12780755]
[1645996074936,7.22458844,85.075,84.972,34.12780755]
[1645996075138,4.50384754,85.074,84.972,34.12780755]
[1645996075336,1.86889336,85.073,84.972,34.12780755]
[1645996075535,4.704,85.072,84.972,34.12780755]
[1645996075737,117.0,85.071,84.972,34.12780755]
[1645996075935,4.704,85.07,84.972,34.12780755]
[1645996076137,18.09273764,85.071,84.972,34.12780755]
[1645996076337,2.74678921,85.069,84.972,34.12780755]
[1645996076740,6.0,85.068,84.972,34.12780755]
[1645996077141,2.74678921,85.067,84.972,34.12780755]
[1645996077340,6.0,85.066,84.972,34.12780755]
[1645996077739,2.74678921,85.065,84.972,34.12780755]
[1645996077940,6.0,85.064,84.972,34.12780755]
[1645996078142,1.87635816,85.063,84.972,34.12780755]
[1645996078339,6.0,85.062,84.972,34.12780755]
[1645996078540,23.27281644,85.062,84.972,34.12780755]
[1645996078740,52.21087017,85.062,84.972,34.12780755]
[1645996078941,18.09273764,85.061,84.972,34.12780755]
[1645996079141,1.91370084,85.06,84.972,34.12780755]
[1645996079443,6.0,85.059,84.972,34.12780755]
[1645996080042,4.66049005,85.06,84.972,34.12780755]
[1645996080243,2.74678921,85.058,84.972,34.12780755]
[1645996080445,6.0,85.057,84.972,34.12780755]
[1645996080846,2.74678921,85.056,84.972,34.12780755]
[1645996081047,6.0,85.055,84.973,117.0]
[1645996081249,75.01892932,85.062,84.973,117.0]
[1645996081448,75.01892932,85.062,84.975,117.0]
[1645996081648,75.01892932,85.062,84.977,117.0]
[1645996081850,75.01892932,85.062,84.992,35.55999415]
[1645996082052,151.8573,85.129,85.002,95.0]
[1645996082248,1.61100641,85.127,85.012,29.88983119]
[1645996082550,1.61100641,85.127,85.02,13.77]
[1645996082847,73.6338,85.129,85.02,13.77]
[1645996082848,25.41930298,85.126,85.021,6.0]
[1645996083047,1.86556456,85.125,85.02,13.77]
[1645996083248,4.61235377,85.125,85.02,13.77]
[1645996083447,17.6448,85.12,85.02,13.77]
[1645996083647,2.05982851,85.119,85.02,13.77]
[1645996083848,25.17576964,85.119,85.021,117.0]
[1645996084048,25.17210282,85.118,85.021,117.0]
[1645996084266,1.79851212,85.117,85.023,117.0]
[1645996084448,1.79851212,85.117,85.025,117.0]
[1645996084651,1.99016796,85.128,85.031,117.0]
[1645996084849,1.99016796,85.128,85.032,6.0]
[1645996085049,25.17210282,85.127,85.033,117.0]
[1645996085249,25.17210282,85.127,85.032,8.74678921]
[1645996085250,1.81120584,85.126,85.035,117.0]
[1645996085449,25.17210282,85.149,85.036,6.0]
[1645996085653,2.74678921,85.126,85.033,2.74678921]
[1645996085854,26.6058786,85.125,85.028,30.4957492]
[1645996086051,17.6446,85.12,85.028,30.4957492]
[1645996086251,1.74299362,85.124,85.028,30.4957492]
[1645996086450,25.17210282,85.124,85.031,117.0]
[1645996086651,2.03914984,85.123,85.033,117.0]
[1645996086851,2.74678921,85.136,85.035,117.0]
[1645996087051,2.74678921,85.136,85.037,117.0]
[1645996087254,25.17210282,85.127,85.051,27.58215475]
[1645996087451,1.653585,85.126,85.051,27.58215475]
[1645996087653,1.653585,85.126,85.052,117.0]
[1645996088059,1.67705616,85.139,85.052,117.0]
[1645996088257,1.67705616,85.139,85.054,117.0]
[1645996088459,1.67705616,85.139,85.056,117.0]
[1645996088657,1.67705616,85.139,85.061,117.0]
[1645996088859,1.5364413,85.154,85.063,117.0]
[1645996089058,1.5364413,85.154,85.065,117.0]
[1645996089258,1.5364413,85.154,85.067,117.0]
[1645996089460,1.62317728,85.153,85.081,117.0]
[1645996089661,1.95206458,85.152,85.083,117.0]
[1645996089865,1.73496912,85.151,85.082,34.25794855]
[1645996090061,1.77668499,85.168,85.083,117.0]
[1645996090262,46.0933,85.192,85.084,6.0]
[1645996090461,1.96208168,85.176,85.084,6.0]
[1645996090862,1.96208168,85.176,85.083,6.0]
[1645996091262,25.17210282,85.175,85.08,13.77]
[1645996091466,117.0,85.173,85.052,2.74678921]
[1645996091665,117.0,85.171,84.985,2.14508789]
[1645996091877,3.67,85.167,84.985,2.14508789]
[1645996092076,3.67,85.147,84.976,47.0976]
[1645996092277,117.0,85.139,85.001,27.50186064]
[1645996092481,1.9173307,85.136,85.001,27.50186064]
[1645996092678,58.827,85.12,85.002,6.0]
[1645996092877,6.0,85.119,85.01,13.77]
[1645996093078,6.0,85.119,85.011,6.0]
[1645996093278,82.31715558,85.117,85.011,6.0]
[1645996093478,1.99188909,85.116,85.011,6.0]
[1645996094277,1.99188909,85.116,85.01,13.77]
[1645996094477,1.99188909,85.116,85.02,17.6409]
[1645996094677,1.99188909,85.116,85.03,13.77]
[1645996094877,1.99188909,85.116,85.022,30.31675185]
[1645996095080,82.31715558,85.117,85.031,117.0]
[1645996095277,82.31715558,85.117,85.03,13.77]
[1645996095278,82.31715558,85.117,85.033,117.0]
[1645996095479,82.31715558,85.117,85.037,117.0]
[1645996095681,82.31715558,85.117,85.051,32.91085748]
[1645996095878,82.31715558,85.117,85.06,13.77]
[1645996096078,82.31715558,85.117,85.06,31.4028]
[1645996096881,82.31715558,85.117,85.061,6.0]
[1645996097079,1.55206067,85.159,85.061,6.0]
[1645996097280,1.55206067,85.159,85.062,117.0]
[1645996097482,70.50700939,85.164,85.064,35.63765566]
[1645996097784,2.74678921,85.158,85.064,35.63765566]
[1645996098479,23.13582638,85.157,85.064,35.63765566]
[1645996098679,1.52826117,85.149,85.064,35.63765566]
[1645996098881,1.81002753,85.156,85.064,35.63765566]
[1645996099080,6.0,85.155,85.064,35.63765566]
[1645996099879,1.81002753,85.156,85.064,35.63765566]
[1645996100083,70.50700939,85.164,85.064,35.63765566]
[1645996100084,1.84637143,85.163,85.064,35.63765566]
[1645996100283,22.70162638,85.156,85.06,13.77]
[1645996100479,117.0,85.154,85.002,2.59246534]
[1645996100680,117.0,85.152,85.006,6.0]
[1645996100880,117.0,85.15,85.011,117.0]
[1645996101080,1.94090294,85.149,85.011,117.0]
[1645996101280,1.71828874,85.129,85.021,117.0]
[1645996101482,6.0,85.128,85.021,117.0]
[1645996101680,1.71828874,85.129,85.021,117.0]
[1645996102080,92.44814241,85.11,85.021,117.0]
[1645996102281,1.89553915,85.109,85.021,117.0]
[1645996102483,1.89553915,85.109,85.023,117.0]
[1645996103487,1.89553915,85.109,85.021,117.0]
[1645996104285,1.89553915,85.109,85.033,117.0]
[1645996104484,92.44814241,85.11,85.041,117.0]
[1645996104885,92.44814241,85.11,85.042,2.74678921]
[1645996105284,92.44814241,85.11,85.061,32.37046925]
[1645996106087,92.44814241,85.11,85.062,117.0]
[1645996107693,2.09984971,85.161,85.064,117.0]
[1645996107891,3.56049834,85.178,85.07,58.7584]
[1645996108096,1.62144498,85.17,85.08,13.77]
[1645996108293,2.05841928,85.16,85.081,6.0]
[1645996108693,23.96850856,85.151,85.081,6.0]
[1645996108898,1.74519955,85.15,85.08,13.77]
[1645996109095,141.82209026,85.15,85.041,46.9476]
[1645996109292,1.52772662,85.129,85.041,46.9476]
[1645996109492,6.0,85.128,85.04,17.6368]
[1645996109691,4.96956317,85.127,85.041,28.4254202]
[1645996109892,8.10029238,85.126,85.041,28.4254202]
[1645996110291,24.82209026,85.125,85.041,28.4254202]
[1645996110492,6.0,85.124,85.041,28.4254202]
[1645996110695,7.89116299,85.124,85.041,28.4254202]
[1645996111096,4.96956317,85.127,85.041,28.4254202]
[1645996111295,7.54223573,85.126,85.041,28.4254202]
[1645996111493,4.96956317,85.127,85.041,28.4254202]
[1645996111697,2.04690294,85.147,85.042,2.74678921]
[1645996111898,74.45041614,85.115,85.042,8.74678921]
[1645996112095,74.45041614,85.115,85.042,11.34412349]
[1645996112294,74.45041614,85.115,85.043,146.8189329]
[1645996112494,74.45041614,85.115,85.046,2.15239601]
[1645996112695,74.45041614,85.115,85.062,30.44650807]
[1645996112995,1.71736426,85.156,85.063,123.0]
[1645996113198,2.03737083,85.177,85.063,125.74678921]
[1645996113596,2.03737083,85.177,85.071,117.0]
[1645996113797,28.41453369,85.176,85.081,117.0]
[1645996113999,1.52768599,85.175,85.085,117.0]
[1645996114198,1.52768599,85.175,85.087,117.0]
[1645996115098,1.52768599,85.175,85.091,117.0]
[1645996115299,28.41453369,85.176,85.093,117.0]
[1645996115501,28.41453369,85.176,85.095,117.0]
[1645996115700,28.41453369,85.176,85.092,2.74678921]
[1645996115701,28.41453369,85.176,85.099,117.0]
[1645996115899,28.41453369,85.176,85.111,117.0]
[1645996116099,28.41453369,85.176,85.115,117.0]
[1645996116298,65.09781527,85.178,85.115,117.0]
[1645996116899,1.59772059,85.214,85.117,117.0]
[1645996117102,63.86363493,85.223,85.151,117.0]
[1645996117301,28.20811714,85.222,85.152,28.4541637]
[1645996117500,1.72709535,85.221,85.152,28.4541637]
[1645996119404,17.6163,85.24,85.152,28.4541637]
[1645996119601,1.94433251,85.239,85.152,28.4541637]
[1645996119800,4.69112172,85.239,85.152,28.4541637]
[1645996120402,17.6184,85.23,85.152,28.4541637]
[1645996120603,1.66054901,85.229,85.152,28.4541637]
[1645996120807,4.40733822,85.229,85.152,28.4541637]
[1645996121003,4.40733822,85.229,85.13,13.77]
[1645996121004,1.66054901,85.229,85.13,13.77]
[1645996121206,1.59772059,85.224,85.11,13.77]
[1645996121504,117.0,85.189,85.1,13.77]
[1645996121711,117.0,85.189,85.09,13.77]
[1645996122010,117.0,85.189,85.086,2.74678921]
[1645996122011,1.89685334,85.186,85.091,26.80442431]
[1645996122211,2.05417677,85.183,85.051,45.8867]
[1645996122411,1.59772059,85.179,85.051,22.759]
[1645996122611,117.0,85.169,85.051,22.759]
[1645996122815,2.02808262,85.166,85.05,13.77]
[1645996123015,118.8019153,85.164,85.05,13.77]
[1645996123215,20.42734658,85.162,85.052,26.10744529]
[1645996123418,6.0,85.161,85.052,26.10744529]
[1645996123615,10.78319926,85.161,85.053,2.74678921]
[1645996124017,10.78319926,85.161,85.052,26.10744529]
[1645996124018,2.74678921,85.16,85.052,26.10744529]
[1645996124316,6.0,85.159,85.052,26.10744529]
[1645996124719,8.74678921,85.159,85.052,26.10744529]
[1645996124918,68.98228599,85.156,85.052,26.10744529]
[1645996125216,7.6574583,85.155,85.053,117.0]
[1645996125416,7.6574583,85.155,85.052,26.10744529]
[1645996125417,7.6574583,85.155,85.061,117.0]
[1645996125629,1.6574583,85.155,85.071,117.0]
[1645996125829,1.6574583,85.155,85.073,117.0]
[1645996126031,1.6574583,85.155,85.075,117.0]
[1645996126630,1.6574583,85.155,85.08,17.6304]
[1645996127232,1.6574583,85.155,85.081,117.0]
[1645996127532,1.6574583,85.155,85.081,119.74678921]
[1645996127732,1.6574583,85.155,85.082,2.74678921]
[1645996128132,1.6574583,85.155,85.081,117.0]
[1645996128536,1.6574583,85.155,85.091,26.55548947]
[1645996128932,1.6574583,85.155,85.092,117.0]
[1645996129333,68.98228599,85.156,85.092,117.0]
[1645996129633,68.98228599,85.156,85.101,117.0]
[1645996130034,68.98228599,85.156,85.091,26.55548947]
[1645996130237,28.43000801,85.155,85.091,26.55548947]
[1645996130434,1.69536016,85.154,85.091,26.55548947]
[1645996131937,26.39490721,85.155,85.091,26.55548947]
[1645996132236,1.70707064,85.154,85.091,26.55548947]
[1645996133134,2.05090409,85.167,85.091,26.55548947]
[1645996133536,2.05090409,85.167,85.092,117.0]
[1645996133937,27.93373999,85.166,85.092,117.0]
[1645996134136,1.59058355,85.165,85.091,26.55548947]
[1645996134738,1.59058355,85.165,85.092,117.0]
[1645996135137,1.6186302,85.181,85.094,117.0]
[1645996135336,1.6186302,85.181,85.093,8.74678921]
[1645996135337,1.6186302,85.181,85.096,117.0]
[1645996135537,1.6186302,85.181,85.11,13.77]
[1645996135737,1.6186302,85.181,85.112,117.0]
[1645996135937,1.6186302,85.181,85.121,117.0]
[1645996136138,22.5361,85.209,85.121,117.0]
[1645996136139,1.98359016,85.188,85.121,117.0]
[1645996136340,1.6385909,85.208,85.12,31.3923]
[1645996136639,1.6385909,85.208,85.12,13.77]
[1645996136839,27.57847665,85.207,85.121,6.0]
[1645996137139,1.66590918,85.206,85.122,117.0]
[1645996137345,1.66590918,85.206,85.121,6.0]
[1645996137346,1.66590918,85.206,85.126,117.0]
[1645996137543,1.66590918,85.206,85.13,13.77]
[1645996137739,117.0,85.206,85.079,4.696]
[1645996137942,1.59772059,85.192,85.07,13.77]
[1645996138140,1.59772059,85.18,85.06,13.77]
[1645996138340,1.59772059,85.165,85.06,13.77]
[1645996138542,7.35959508,85.164,85.061,28.47211035]
[1645996138746,1.81867065,85.162,85.061,28.47211035]
[1645996139045,10.699,85.161,85.03,13.77]
[1645996139242,1.59772059,85.156,85.03,13.77]
[1645996139442,1.59772059,85.154,85.03,13.77]
[1645996139741,6.0,85.153,85.03,13.77]
[1645996139941,33.20728921,85.153,85.031,25.63297481]
[1645996140141,1.5844066,85.152,85.032,121.7]
[1645996140341,25.94368686,85.151,85.034,117.0]
[1645996140541,26.33487295,85.15,85.035,6.0]
[1645996140741,1.64703721,85.149,85.061,28.76009566]
[1645996141141,4.39382642,85.149,85.061,28.76009566]
[1645996141346,2.74678921,85.148,85.061,27.76009566]
[1645996141741,6.0,85.147,85.061,27.76009566]
[1645996142141,2.74678921,85.146,85.061,27.76009566]
[1645996142341,6.0,85.145,85.061,27.76009566]
[1645996142541,6.0,85.145,85.034,15.66476037]
[1645996142742,2.74678921,85.144,85.034,15.66476037]
[1645996142942,6.0,85.143,85.034,15.66476037]
[1645996143343,6.0,85.143,85.035,34.07622409]
[1645996143344,2.74678921,85.142,85.035,34.07622409]
[1645996143544,2.05772294,85.142,85.036,145.07196403]
[1645996143744,2.04437131,85.149,85.051,117.0]
[1645996143944,2.04437131,85.149,85.053,117.0]
[1645996144344,2.07996681,85.16,85.081,140.37196403]
[1645996144544,2.07996681,85.16,85.081,23.37196403]
[1645996144743,1.70780115,85.15,85.081,23.37196403]
[1645996145544,1.70780115,85.15,85.09,17.6277]
[1645996145744,74.2505,85.173,85.09,31.3977]
[1645996145945,24.94368686,85.151,85.09,31.3977]
[1645996146143,24.94368686,85.151,85.09,13.77]
[1645996146144,1.94645102,85.15,85.09,13.77]
[1645996146746,112.6,85.158,85.09,13.77]
[1645996146944,112.6,85.19,85.09,19.77]
[1645996147143,112.6,85.19,85.091,161.13748904]
[1645996147348,112.6,85.19,85.092,2.70879016]
[1645996147544,112.6,85.19,85.093,121.698]
[1645996147745,25.75965223,85.164,85.093,4.698]
[1645996147945,1.68024347,85.163,85.09,13.77]
[1645996148747,1.68024347,85.163,85.06,13.77]
[1645996148950,1.54820422,85.161,85.05,13.77]
[1645996149147,6.0,85.16,85.05,13.77]
[1645996149353,8.74678921,85.16,85.05,13.77]
[1645996149548,4.7,85.159,85.019,28.1558]
[1645996149747,27.39354386,85.159,85.031,25.4119705]
[1645996149947,141.53630816,85.158,85.02,13.77]
[1645996150152,1.59772059,85.148,85.02,13.77]
[1645996150351,1.59772059,85.148,84.97,13.77]
[1645996150352,3.67,85.107,84.97,13.77]
[1645996150551,3.67,85.107,84.9,17.3941]
[1645996150552,3.67,85.057,84.929,17.6901]
[1645996150748,9.11,85.057,84.902,2.68392179]
[1645996150958,9.11,85.057,84.901,317.83440831]
[1645996150959,48.72686419,85.056,84.904,33.01703023]
[1645996151148,1.56023702,85.055,84.921,4.07111662]
[1645996151350,3.67,85.047,84.921,4.07111662]
[1645996151955,6.70232035,85.053,84.922,28.03843554]
[1645996152156,1.99632035,85.053,84.922,28.03843554]
[1645996152351,1.99632035,85.053,84.922,2.74678921]
[1645996152562,1.99632035,85.053,84.923,2.74678921]
[1645996152949,6.70232035,85.053,84.923,17.96327007]
[1645996153150,6.70232035,85.053,84.924,25.69843554]
[1645996153350,1.99632035,85.053,84.924,28.44522475]
[1645996153553,1.99632035,85.053,84.924,43.66170561]
[1645996153752,1.99632035,85.053,84.925,54.93689721]
[1645996153954,1.9645267,85.051,84.925,52.28108145]
[1645996154154,1.9645267,85.051,84.926,51.83380484]
[1645996154354,1.9645267,85.051,84.94,185.88]
[1645996154657,2.00772442,85.098,84.941,2.10132107]
[1645996154857,2.00772442,85.098,84.941,69.06329672]
[1645996155155,2.00772442,85.098,84.95,172.11]
[1645996155355,2.00772442,85.098,84.96,13.77]
[1645996155555,2.00772442,85.098,84.961,6.16496473]
[1645996155754,2.00772442,85.098,84.962,4.704]
[1645996156054,2.00772442,85.098,84.962,22.13219007]
[1645996156354,2.00772442,85.098,84.963,17.42819007]
[1645996156555,2.00772442,85.098,84.964,4.704]
[1645996156762,2.00772442,85.098,84.964,49.7618653]
[1645996156958,2.00772442,85.098,84.965,15.32699807]
[1645996157158,2.00772442,85.098,84.981,26.25530192]
[1645996157356,26.58432144,85.099,84.981,26.25530192]
[1645996157558,26.58432144,85.099,84.982,47.37735577]
[1645996157755,26.58432144,85.099,85.0,172.11]
[1645996157956,26.58432144,85.099,85.01,13.77]
[1645996158158,26.58432144,85.099,85.01,19.77]
[1645996158455,1.61951234,85.147,85.011,34.40028791]
[1645996158658,1.61951234,85.147,85.012,2.6537436]
[1645996158857,1.61951234,85.147,85.013,4.7]
[1645996159057,1.61951234,85.147,85.013,22.324559]
[1645996159258,1.61951234,85.147,85.013,42.89922295]
[1645996159461,27.43461478,85.146,85.02,172.11]
[1645996159661,2.05632631,85.145,85.031,10.83284493]
[1645996159860,1.66993782,85.159,85.04,172.11]
[1645996160061,1.66993782,85.159,85.05,13.77]
[1645996160260,1.66993782,85.159,85.05,19.77]
[1645996160461,1.66993782,85.159,85.051,2.74678921]
[1645996160961,1.61886219,85.157,85.052,26.25530192]
[1645996161163,1.61886219,85.157,85.053,4.7]
[1645996161564,1.61886219,85.157,85.052,26.25530192]
[1645996162062,1.61886219,85.157,85.053,2.74678921]
[1645996162464,1.61886219,85.157,85.052,26.25530192]
[1645996162663,1.61886219,85.157,85.053,2.74678921]
[1645996163271,4.7,85.216,85.054,4.7]
[1645996163473,1.71554157,85.187,85.054,54.58589138]
[1645996163673,1.71554157,85.187,85.055,2.74678921]
[1645996163971,1.71554157,85.187,85.07,13.77]
[1645996164175,27.04324184,85.186,85.071,15.53084493]
[1645996164374,1.66311446,85.185,85.071,18.27763414]
[1645996164778,1.66311446,85.185,85.072,2.74678921]
[1645996164975,1.66311446,85.185,85.073,4.698]
[1645996165376,1.66311446,85.185,85.074,2.74678921]
[1645996165976,1.66311446,85.185,85.075,4.698]
[1645996166174,1.66311446,85.185,85.09,13.77]
[1645996166375,1.66311446,85.185,85.092,26.25530192]
[1645996166575,22.9258,85.211,85.092,26.25530192]
[1645996166576,2.0428891,85.207,85.093,4.698]
[1645996166996,2.0428891,85.207,85.093,7.44478921]
[1645996167191,2.0428891,85.207,85.094,2.74678921]
[1645996167391,28.36203831,85.206,85.094,2.74678921]
[1645996167591,1.71171781,85.205,85.094,2.74678921]
[1645996167991,1.71171781,85.205,85.092,26.25530192]
[1645996168190,2.74678921,85.204,85.092,26.25530192]
[1645996168592,2.74678921,85.204,85.093,2.74678921]
[1645996169093,22.9258,85.211,85.093,2.74678921]
[1645996169293,1.9552574,85.21,85.094,4.697]
[1645996169492,1.9552574,85.21,85.094,10.207]
[1645996169693,1.9552574,85.21,85.095,2.74678921]
[1645996169896,33.46018759,85.251,85.101,2.17438759]
[1645996170095,33.46018759,85.251,85.121,10.83284493]
[1645996170292,1.71689622,85.25,85.13,13.77]
[1645996170493,1.71689622,85.25,85.13,191.88]
[1645996170694,1.71689622,85.25,85.131,4.695]
[1645996170901,33.46018759,85.251,85.141,26.25530192]
[1645996171106,33.46018759,85.251,85.15,187.99454998]
[1645996171394,1.62757436,85.25,85.15,191.88]
[1645996171996,1.62757436,85.25,85.151,4.694]
[1645996172195,1.62757436,85.25,85.15,191.88]
[1645996172594,1.73704456,85.25,85.151,4.694]
[1645996172997,114.3949,85.298,85.151,4.694]
[1645996172998,1.56714533,85.291,85.151,4.694]
[1645996173196,1.94376061,85.252,85.15,172.11]
[1645996173396,1.94376061,85.252,85.141,26.25530192]
[1645996173597,28.50472836,85.251,85.141,26.25530192]
[1645996173796,1.84082852,85.25,85.15,13.77]
[1645996174798,7.84082852,85.25,85.15,13.77]
[1645996175001,1.84082852,85.25,85.15,13.77]
[1645996176198,2.74678921,85.249,85.15,13.77]
[1645996177102,2.74678921,85.249,85.141,26.25530192]
[1645996177299,2.74678921,85.249,85.15,13.77]
[1645996177502,4.47635837,85.249,85.15,13.77]
[1645996177900,4.47635837,85.249,85.15,19.77]
[1645996178102,2.74678921,85.248,85.15,13.77]
[1645996178302,85.0,85.247,85.107,25.3782854]
[1645996178501,26.06143351,85.247,85.05,172.11]
[1645996178702,26.06143351,85.247,85.041,74.9163]
[1645996178703,1.59772059,85.232,85.041,74.9163]
[1645996178905,1.59772059,85.215,85.041,74.9163]
[1645996179107,13.77,85.21,85.05,13.77]
[1645996179303,6.31105095,85.209,85.05,13.77]
[1645996179502,1.59772059,85.205,85.05,13.77]
[1645996179704,13.77,85.2,85.05,13.77]
[1645996179904,74.54611239,85.199,85.05,19.77]
[1645996180106,1.98511335,85.198,85.05,19.77]
[1645996180304,54.17335964,85.181,85.051,4.699]
[1645996180505,11.21442626,85.179,85.05,19.77]
[1645996180703,6.77973879,85.178,85.05,13.77]
[1645996180906,35.33680846,85.178,85.05,6.0]
[1645996181105,1.99065262,85.177,85.042,32.55451344]
[1645996181405,25.73742689,85.16,85.042,32.55451344]
[1645996181609,4.7,85.159,85.042,32.55451344]
[1645996181805,36.00385888,85.159,84.964,4.7]
[1645996182005,1.59772059,85.151,84.97,13.77]
[1645996182205,4.702,85.15,84.971,4.702]
[1645996182407,43.60357947,85.15,84.971,6.95164079]
[1645996182608,1.6910587,85.148,84.972,16.89608121]
[1645996182806,11.21442626,85.147,84.973,37.18254109]
[1645996183007,1.84213548,85.146,84.974,2.85954667]
[1645996183206,2.06850057,85.145,84.975,4.702]
[1645996183406,4.702,85.144,84.975,4.702]
[1645996183606,4.702,85.144,84.973,30.12790354]
[1645996183607,13.77,85.14,84.973,30.12790354]
[1645996183807,6.693933,85.139,84.973,30.12790354]
[1645996184210,26.87934746,85.138,84.973,30.12790354]
[1645996184407,1.75404337,85.137,84.973,30.12790354]
[1645996184608,4.50083258,85.137,84.973,30.12790354]
[1645996184810,4.75619499,85.136,84.973,30.12790354]
[1645996185008,30.66178516,85.136,84.973,32.65029042]
[1645996185214,4.71780621,85.135,84.974,5.56099649]
[1645996185409,25.73742689,85.134,84.974,22.4570777]
[1645996185609,1.61039773,85.133,84.975,5.245889]
[1645996185808,27.5159879,85.133,84.975,5.245889]
[1645996186011,1.61380862,85.132,84.975,2.49909979]
[1645996186210,25.90559017,85.132,84.975,2.49909979]
[1645996186411,1.9369117,85.13,84.973,30.12790354]
[1645996186610,7.9369117,85.13,84.973,30.12790354]
[1645996186809,50.03814842,85.129,84.973,30.12790354]
[1645996187010,2.06711819,85.128,84.973,30.12790354]
[1645996187209,30.16904605,85.128,84.973,30.12790354]
[1645996187412,26.02077101,85.127,84.973,30.12790354]
[1645996187611,1.78620292,85.126,84.974,5.11846112]
[1645996187813,30.16904605,85.126,84.974,2.74678921]
[1645996188011,6.33656016,85.125,84.973,30.12790354]
[1645996188210,1.65592584,85.124,84.973,30.12790354]
[1645996188410,111.50801024,85.124,84.974,2.74678921]
[1645996188613,1.59772059,85.12,84.875,72.5383]
[1645996188815,13.77,85.11,84.899,12.21794857]
[1645996189013,1.59772059,85.097,84.899,12.21794857]
[1645996189214,1.59772059,85.089,84.9,13.77]
[1645996189416,13.77,85.08,84.901,33.14543355]
[1645996189613,6.39704847,85.079,84.901,33.14543355]
[1645996189813,1.72923115,85.078,84.901,33.14543355]
[1645996190014,4.706,85.077,84.901,33.14543355]
[1645996190213,9.05063093,85.077,84.901,33.14543355]
[1645996190415,9.05063093,85.077,84.902,2.26583626]
[1645996190618,20.52872431,85.077,84.902,2.26583626]
[1645996190913,25.73742689,85.075,84.902,2.26583626]
[1645996191113,4.706,85.074,84.903,23.6033]
[1645996191313,13.77,85.07,84.903,23.6033]
[1645996191514,6.36071489,85.069,84.903,23.6033]
[1645996191713,22.792,85.068,84.903,23.6033]
[1645996191915,2.06525784,85.067,84.903,23.6033]
[1645996192213,2.06525784,85.067,84.904,2.76283464]
[1645996192412,1.82981029,85.065,84.904,2.76283464]
[1645996192614,1.82981029,85.065,84.903,23.6033]
[1645996192813,2.74678921,85.064,84.903,23.6033]
[1645996193015,11.21442626,85.062,84.903,23.6033]
[1645996193212,6.63264316,85.061,84.903,23.6033]
[1645996193413,6.0,85.06,84.903,23.6033]
[1645996193613,1.6521247,85.059,84.903,23.6033]
[1645996193814,4.706,85.058,84.903,23.6033]
[1645996194013,7.45278921,85.058,84.903,23.6033]
[1645996194212,2.74678921,85.058,84.904,2.11008249]
[1645996194614,1.6521247,85.059,84.904,2.11008249]
[1645996194815,1.6521247,85.059,84.905,2.50611703]
[1645996195014,1.6521247,85.059,84.921,17.7127133]
[1645996196716,2.74678921,85.058,84.921,17.7127133]